lending/lending_fUSD_20241214
["ID","MTS","AMOUNT","RATE_DAILY","PERIOD"]
[345330789,1734153047287,-500.0,0.00021249,3]
[345330790,1734153047296,-724.4,0.00021249,3]
[345330791,1734153047305,-500.0,0.00021249,3]
[345330792,1734153047315,-724.63486882,0.00021249,3]
[345330793,1734153047324,-500.0,0.00021249,3]
[345330794,1734153047333,-500.0,0.00021249,3]
[345330795,1734153047343,-500.0,0.00021249,3]
[345330796,1734153047352,-500.0,0.00021249,3]
[345330797,1734153047361,-500.0,0.00021249,3]
[345330798,1734153047370,-500.0,0.00021249,3]
[345330799,1734153047379,-500.0,0.00021249,3]
[345330800,1734153047389,-500.0,0.00021249,3]
[345330801,1734153047398,-500.0,0.00021249,3]
[345330802,1734153047407,-500.0,0.00021249,3]
[345330803,1734153047416,-500.0,0.00021249,3]
[345330804,1734153047426,-500.0,0.00021249,3]
[345330805,1734153047435,-500.0,0.00021249,3]
[345330806,1734153047444,-500.0,0.00021249,3]
[345330807,1734153047453,-483.98336092,0.00021249,3]
[345330808,1734153047462,-500.0,0.00021249,3]
[345330809,1734153047471,-500.0,0.00021249,3]
[345330810,1734153047481,-354.1226304,0.00021249,3]
[345330811,1734153047490,-500.0,0.00021249,3]
[345330812,1734153047499,-500.0,0.00021249,3]
[345330813,1734153047510,-500.0,0.00021249,3]
[345330814,1734153047519,-500.0,0.00021249,3]
[345330815,1734153047531,-500.0,0.00021249,3]
[345330816,1734153047543,-500.0,0.00021249,3]
[345330817,1734153047553,-500.0,0.00021249,3]
[345330818,1734153047562,-500.0,0.00021249,3]
[345330819,1734153047574,-500.0,0.00021249,3]
[345330820,1734153047583,-500.0,0.00021249,3]
[345330821,1734153047593,-500.0,0.00021249,3]
[345330822,1734153047602,-500.0,0.00021249,3]
[345330823,1734153047613,-500.0,0.00021249,3]
[345330824,1734153047622,-500.0,0.00021249,3]
[345330825,1734153047632,-500.0,0.00021249,3]
[345330826,1734153047641,-359.8262103,0.00021249,3]
[345330827,1734153047650,-500.0,0.00021249,3]
[345330828,1734153047659,-500.0,0.00021249,3]
[345330829,1734153047669,-500.0,0.00021249,3]
[345330830,1734153047679,-500.0,0.00021249,3]
[345330831,1734153047688,-500.0,0.00021249,3]
[345330832,1734153047698,-500.0,0.00021249,3]
[345330833,1734153047707,-500.0,0.00021249,3]
[345330834,1734153047716,-500.0,0.00021249,3]
[345330835,1734153047725,-278.59531685,0.00021249,3]
[345330836,1734153047735,-977.74,0.00021249,3]
[345330837,1734153047743,-977.74,0.00021249,3]
[345330838,1734153047753,-977.74,0.00021249,3]
[345330839,1734153047763,-977.74,0.00021249,3]
[345330840,1734153047772,-977.74,0.00021249,3]
[345330841,1734153047781,-977.74,0.00021249,3]
[345330842,1734153047790,-977.74,0.00021249,3]
[345330843,1734153047801,-977.74,0.00021249,3]
[345330844,1734153047811,-977.74,0.00021249,3]
[345330845,1734153047822,-977.74,0.00021249,3]
[345330846,1734153047831,-977.74,0.00021249,3]
[345330847,1734153047842,-977.74,0.00021249,3]
[345330848,1734153047851,-977.74,0.00021249,3]
[345330849,1734153047860,-977.74,0.00021249,3]
[345330850,1734153047870,-977.74,0.00021249,3]
[345330851,1734153047879,-977.74,0.00021249,3]
[345330852,1734153047888,-977.74,0.00021249,3]
[345330853,1734153047896,-977.74,0.00021249,3]
[345330854,1734153047905,-977.74,0.00021249,3]
[345330855,1734153047915,-977.74,0.00021249,3]
[345330856,1734153047925,-977.74,0.00021249,3]
[345330857,1734153047935,-977.95914764,0.00021249,3]
[345330858,1734153047944,-500.0,0.00021249,3]
[345330859,1734153047954,-500.0,0.00021249,3]
[345330860,1734153047963,-500.0,0.00021249,3]
[345330861,1734153047972,-500.0,0.00021249,3]
[345330862,1734153047982,-500.0,0.00021249,3]
[345330863,1734153047992,-500.0,0.00021249,3]
[345330864,1734153048002,-500.0,0.00021249,3]
[345330865,1734153048011,-500.0,0.00021249,3]
[345330866,1734153048020,-500.0,0.00021249,3]
[345330867,1734153048030,-500.0,0.00021249,3]
[345330868,1734153048039,-500.0,0.00021249,3]
[345330869,1734153048049,-500.0,0.00021249,3]
[345330870,1734153048058,-500.0,0.00021249,3]
[345330871,1734153048067,-500.0,0.00021249,3]
[345330872,1734153048077,-500.0,0.00021249,3]
[345330873,1734153048086,-500.0,0.00021249,3]
[345330874,1734153048095,-500.0,0.00021249,3]
[345330875,1734153048105,-500.0,0.00021249,3]
[345330876,1734153048114,-500.0,0.00021249,3]
[345330877,1734153048123,-500.0,0.00021249,3]
[345330878,1734153048133,-500.0,0.00021249,3]
[345330879,1734153048142,-500.0,0.00021249,3]
[345330880,1734153048151,-500.0,0.00021249,3]
[345330881,1734153048160,-500.0,0.00021249,3]
[345330882,1734153048169,-500.0,0.00021249,3]
[345330883,1734153048180,-625.03,0.00021249,3]
[345330884,1734153048190,-324.40890977,0.00021249,3]
[345330885,1734153048199,-500.0,0.00021249,3]
[345330886,1734153048209,-500.0,0.00021249,3]
[345330887,1734153048218,-500.0,0.00021249,3]
[345330888,1734153048228,-500.0,0.00021249,3]
[345330889,1734153048238,-500.0,0.00021249,3]
[345330890,1734153048247,-500.0,0.00021249,3]
[345330891,1734153048257,-500.0,0.00021249,3]
[345330892,1734153048267,-500.0,0.00021249,3]
[345330893,1734153048276,-500.0,0.00021249,3]
[345330894,1734153048285,-302.73251683,0.00021249,3]
[345330895,1734153048295,-500.0,0.00021249,3]
[345330896,1734153048304,-500.0,0.00021249,3]
[345330897,1734153048314,-500.0,0.00021249,3]
[345330898,1734153048323,-500.0,0.00021249,3]
[345330899,1734153048333,-500.0,0.00021249,3]
[345330900,1734153048342,-500.0,0.00021249,3]
[345330901,1734153048352,-500.0,0.00021249,3]
[345330902,1734153048362,-500.0,0.00021249,3]
[345330903,1734153048371,-500.0,0.00021249,3]
[345330904,1734153048381,-500.0,0.00021249,3]
[345330905,1734153048390,-317.68,0.00021249,3]
[345330906,1734153048400,-500.0,0.00021249,3]
[345330907,1734153048410,-500.0,0.00021249,3]
[345330908,1734153048420,-500.0,0.00021249,3]
[345330909,1734153048429,-500.0,0.00021249,3]
[345330910,1734153048439,-690.12,0.00021249,3]
[345330911,1734153048448,-500.0,0.00021249,3]
[345330912,1734153048457,-690.12,0.00021249,3]
[345330913,1734153048468,-690.12,0.00021249,3]
[345330914,1734153048478,-500.0,0.00021249,3]
[345330915,1734153048487,-500.0,0.00021249,3]
[345330916,1734153048496,-690.12,0.00021249,3]
[345330917,1734153048507,-500.0,0.00021249,3]
[345330918,1734153048516,-500.0,0.00021249,3]
[345330919,1734153048525,-690.12,0.00021249,3]
[345330920,1734153048539,-500.0,0.00021249,3]
[345330921,1734153048548,-690.12,0.00021249,3]
[345330922,1734153048558,-500.0,0.00021249,3]
[345330923,1734153048567,-690.12,0.00021249,3]
[345330924,1734153048579,-500.0,0.00021249,3]
[345330925,1734153048588,-690.12,0.00021249,3]
[345330926,1734153048599,-500.0,0.00021249,3]
[345330927,1734153048610,-690.12,0.00021249,3]
[345330928,1734153048619,-500.0,0.00021249,3]
[345330929,1734153048628,-500.0,0.00021249,3]
[345330930,1734153048638,-500.0,0.00021249,3]
[345330931,1734153048647,-500.0,0.00021249,3]
[345330932,1734153048658,-690.12,0.00021249,3]
[345330933,1734153048667,-259.02,0.00021249,3]
[345330934,1734153048677,-690.12,0.00021249,3]
[345330935,1734153048687,-690.12,0.00021249,3]
[345330936,1734153048697,-690.12,0.00021249,3]
[345330937,1734153048706,-690.12,0.00021249,3]
[345330938,1734153048716,-690.12,0.00021249,3]
[345330939,1734153048725,-690.12,0.00021249,3]
[345330940,1734153048734,-690.12,0.00021249,3]
[345330941,1734153048743,-500.0,0.00021249,3]
[345330942,1734153048753,-690.12,0.00021249,3]
[345330943,1734153048769,-690.12,0.00021249,3]
[345330944,1734153048780,-500.0,0.00021249,3]
[345330945,1734153048790,-690.12,0.00021249,3]
[345330946,1734153048800,-500.0,0.00021249,3]
[345330947,1734153048809,-500.0,0.00021249,3]
[345330948,1734153048819,-690.12,0.00021249,3]
[345330949,1734153048828,-690.12356344,0.00021249,3]
[345330950,1734153048838,-500.0,0.00021249,3]
[345330951,1734153048847,-500.0,0.00021249,3]
[345330952,1734153048857,-500.0,0.00021249,3]
[345330953,1734153048867,-500.0,0.00021249,3]
[345330954,1734153048877,-500.0,0.00021249,3]
[345330955,1734153048887,-500.0,0.00021249,3]
[345330956,1734153048896,-500.0,0.00021249,3]
[345330957,1734153048906,-500.0,0.00021249,3]
[345330958,1734153048916,-500.0,0.00021249,3]
[345330959,1734153048926,-500.0,0.00021249,3]
[345330960,1734153048936,-500.0,0.00021249,3]
[345330961,1734153048945,-500.0,0.00021249,3]
[345330962,1734153048955,-500.0,0.00021249,3]
[345330963,1734153048964,-317.6,0.00021249,3]
[345330964,1734153048973,-500.0,0.00021249,3]
[345330965,1734153048983,-500.0,0.00021249,3]
[345330966,1734153048993,-500.0,0.00021249,3]
[345330967,1734153049003,-644.25,0.00021249,3]
[345330968,1734153049013,-500.0,0.00021249,3]
[345330969,1734153049023,-500.0,0.00021249,3]
[345330970,1734153049032,-398.93253538,0.00021249,3]
[345330971,1734153049042,-500.0,0.00021249,3]
[345330972,1734153049051,-500.0,0.00021249,3]
[345330973,1734153049061,-638.2,0.00021249,3]
[345330974,1734153049071,-500.0,0.00021249,3]
[345330975,1734153049081,-500.0,0.00021249,3]
[345330976,1734153049091,-500.0,0.00021249,3]
[345330977,1734153049101,-500.0,0.00021249,3]
[345330978,1734153049111,-500.0,0.00021249,3]
[345330979,1734153049121,-500.0,0.00021249,3]
[345330980,1734153049131,-500.0,0.00021249,3]
[345330981,1734153049141,-500.0,0.00021249,3]
[345330982,1734153049151,-500.0,0.00021249,3]
[345330983,1734153049161,-500.0,0.00021249,3]
[345330984,1734153049171,-500.0,0.00021249,3]
[345330985,1734153049181,-537.47890721,0.00021249,3]
[345330986,1734153049191,-500.0,0.00021249,3]
[345330987,1734153049201,-646.32751987,0.00021249,3]
[345330988,1734153049210,-500.0,0.00021249,3]
[345330989,1734153049220,-232.04,0.00021249,3]
[345330990,1734153049230,-30000.0,0.0002125,2]
[345330991,1734153049240,-226022.84419626,0.0002125,4]
[345330992,1734153049250,-6283.1812228,0.0002125,2]
[345330993,1734153049260,-4633.6645752,0.0002125,2]
[345330994,1734153049270,-770.0,0.0002125,2]
[345330995,1734153049283,-183.785,0.0002125,2]
[345330996,1734153049294,-150.661,0.0002125,2]
[345330997,1734153049304,-153.691,0.0002125,2]
[345330998,1734153049313,-567.0,0.0002125,2]
[345330999,1734153049323,-1265.673,0.0002125,2]
[345331000,1734153049333,-2007.0,0.0002125,2]
[345331001,1734153049343,-632.0,0.0002125,2]
[345331002,1734153049352,-1895.0,0.0002125,2]
[345331003,1734153049362,-663.359,0.0002125,2]
[345331004,1734153049371,-817.0,0.0002125,2]
[345331005,1734153049381,-704.0,0.0002125,2]
[345331006,1734153049391,-14204215.26771257,0.0002125,2]
[345331007,1734153049735,-500.0,0.00021249,3]
[345331008,1734153049750,-2117.19999987,0.0002125,2]
[345331009,1734153049800,-409.99,0.0002125,2]
[345331010,1734153049824,-13176.97779852,0.0002125,2]
[345331011,1734153049864,-360.3539628,0.0002125,2]
[345331012,1734153049971,-500.0,0.00021249,3]
[345331013,1734153049981,-500.0,0.00021249,3]
[345331014,1734153049990,-24417.58035288,0.0002125,2]
[345331015,1734153050007,-4689.29108054,0.0002125,2]
[345331016,1734153050019,-9489.20701298,0.0002125,2]
[345331017,1734153050030,-492.96075074,0.0002125,2]
[345331018,1734153050042,-489.5750055,0.0002125,2]
[345331019,1734153050053,-278.20000002,0.0002125,2]
[345331020,1734153050189,-3023.18696653,0.0002125,2]
[345331021,1734153050201,-385.10042156,0.0002125,2]
[345331022,1734153050212,-1302.1840501,0.0002125,2]
[345331023,1734153050223,-5830.01259267,0.0002125,2]
[345331024,1734153050234,-26730.3962851,0.0002125,2]
[345331025,1734153050245,-2521.83848097,0.0002125,2]
[345331026,1734153050285,-1010.07,0.00020135,2]
[345331027,1734153050294,-3930.63038,0.0002125,2]
[345331028,1734153405241,10000.0,0.00012001,2]
[345331029,1734153419598,10000.0,0.00012001,2]
[345331030,1734153432476,5118.0,0.00012001,2]
[345331032,1734153617810,160.44,0.00010137,2]
[345331033,1734153908210,1333279.02981452,0.0001,2]
[345331034,1734153940172,-500.0,0.00017414,2]
[345331035,1734153940192,-1077.11362618,0.00019506,2]
[345331036,1734154035099,-150.0,0.00016379,2]
[345331037,1734154035122,-6033.52996251,0.0001638,2]
[345331039,1734154043097,-10384.5419599,0.0001638,2]
[345331056,1734154163101,-940.92149975,0.0001628,2]
[345331057,1734154167098,-1827.15770615,0.0001628,2]
[345331068,1734154231866,-1396.50221221,0.0001638,2]
[345331073,1734154232091,-398.2,0.0001638,2]
[345331074,1734154232207,-39751.49412502,0.0001638,2]
[345331075,1734154232220,-13735.38829164,0.0001638,2]
[345331076,1734154232230,-2232.04905352,0.000169,2]
[345331077,1734154232242,-1450.0,0.000169,2]
[345331160,1734154237800,-1583.99352185,0.000169,2]
[345331161,1734154237809,-3658.9833367,0.00017,2]
[345331162,1734154237819,-579.78602789,0.00017678,2]
[345331163,1734154237828,-1577.55984783,0.00017678,2]
[345331164,1734154237837,-359.62914938,0.00017874,2]
[345331165,1734154237907,-207.14085062,0.00017874,2]
[345331166,1734154237917,-153.75,0.00019688,2]
[345331167,1734154237926,-2422.13,0.0001971,2]
[345331168,1734154237935,-151.09,0.00019948,2]
[345331169,1734154237943,-200.0,0.00019982,2]
[345331170,1734154237952,-150.0,0.00020108,2]
[345331171,1734154237961,-451.68,0.00020113,2]
[345331172,1734154237971,-566.77,0.00020138,2]
[345331173,1734154237979,-1000.0,0.00020186,2]
[345331174,1734154237989,-268.547,0.0002019,2]
[345331175,1734154237998,-532.57,0.00020228,2]
[345331176,1734154238009,-250.0,0.00020245,2]
[345331177,1734154238018,-250.0,0.00020245,2]
[345331178,1734154238027,-3450.65,0.00020254,2]
[345331179,1734154238036,-250.0,0.00020259,2]
[345331180,1734154238045,-152.0,0.00020303,3]
[345331181,1734154238058,-165.46,0.00020373,30]
[345331182,1734154238067,-2402.90239842,0.0002049,3]
[345331183,1734154238076,-340.02,0.00020491,2]
[345331184,1734154238086,-748.32,0.00020664,2]
[345331185,1734154238095,-151.09,0.00020686,2]
[345331186,1734154238104,-168.74,0.00020866,2]
[345331187,1734154238113,-3099.62370148,0.00020891,2]
[345331188,1734154238122,-258.78973023,0.00020892,2]
[345331189,1734154238131,-3099.62370148,0.00020898,2]
[345331190,1734154238140,-3099.62370148,0.0002091,2]
[345331191,1734154238149,-3099.62370148,0.00020911,2]
[345331192,1734154238158,-3099.62370148,0.00020916,2]
[345331193,1734154238167,-258.78973023,0.00020917,2]
[345331194,1734154238177,-3099.62370148,0.00020927,2]
[345331195,1734154238186,-258.78973023,0.00020934,2]
[345331196,1734154238195,-258.78973023,0.00020944,2]
[345331197,1734154238204,-258.78973023,0.00020948,2]
[345331198,1734154238213,-1010.37,0.00020995,2]
[345331199,1734154238222,-710.0,0.00021,2]
[345331200,1734154238231,-150.0,0.00021096,2]
[345331201,1734154238240,-1964.7993,0.00021149,2]
[345331202,1734154238250,-500.0,0.00021199,3]
[345331203,1734154238259,-500.0,0.00021199,3]
[345331204,1734154238268,-500.0,0.00021199,3]
[345331205,1734154238277,-500.0,0.00021199,3]
[345331206,1734154238286,-524.11,0.00021199,3]
[345331207,1734154238295,-500.0,0.00021199,3]
[345331208,1734154238307,-500.0,0.00021199,3]
[345331209,1734154238316,-500.0,0.00021199,3]
[345331210,1734154238325,-500.0,0.00021199,3]
[345331211,1734154238334,-500.0,0.00021199,3]
[345331212,1734154238342,-331.47,0.000212,2]
[345331213,1734154238351,-1162.025,0.000212,2]
[345331214,1734154238360,-500.0,0.00021246,3]
[345331215,1734154238369,-412.02,0.00021246,3]
[345331216,1734154238378,-500.0,0.00021246,3]
[345331217,1734154238388,-561.84989772,0.00021247,3]
[345331218,1734154238397,-222.121413,0.00021248,9]
[345331219,1734154238406,-222.121413,0.00021248,8]
[345331220,1734154238415,-500.0,0.00021248,3]
[345331221,1734154238423,-500.0,0.00021248,3]
[345331222,1734154238432,-537.94325238,0.00021248,3]
[345331223,1734154238441,-549.63,0.00021248,3]
[345331224,1734154238450,-599.95457316,0.00021248,3]
[345331225,1734154238459,-500.0,0.00021248,3]
[345331226,1734154238467,-500.0,0.00021248,3]
[345331227,1734154238476,-500.0,0.00021248,3]
[345331228,1734154238485,-500.0,0.00021248,3]
[345331229,1734154238494,-500.0,0.00021248,3]
[345331230,1734154238503,-500.0,0.00021248,3]
[345331231,1734154238512,-500.0,0.00021248,3]
[345331232,1734154238521,-500.0,0.00021248,3]
[345331233,1734154238530,-500.0,0.00021248,3]
[345331234,1734154238539,-500.0,0.00021248,3]
[345331235,1734154238549,-500.0,0.00021248,3]
[345331236,1734154238565,-500.0,0.00021248,3]
[345331237,1734154238574,-500.0,0.00021248,3]
[345331238,1734154238583,-500.0,0.00021248,3]
[345331239,1734154238592,-500.0,0.00021248,3]
[345331240,1734154238600,-500.0,0.00021248,3]
[345331241,1734154238611,-500.0,0.00021248,3]
[345331242,1734154238619,-500.0,0.00021248,3]
[345331243,1734154238628,-782.11,0.00021248,3]
[345331244,1734154238637,-500.0,0.00021248,3]
[345331245,1734154238646,-500.0,0.00021248,3]
[345331246,1734154238655,-617.29383612,0.00021248,3]
[345331247,1734154238664,-500.0,0.00021248,3]
[345331248,1734154238673,-546.07,0.00021248,3]
[345331249,1734154238682,-515.03753355,0.00021248,3]
[345331250,1734154238691,-500.0,0.00021248,3]
[345331251,1734154238700,-500.0,0.00021248,3]
[345331252,1734154238709,-222.121413,0.00021248,7]
[345331253,1734154238719,-222.121413,0.00021248,7]
[345331254,1734154238727,-150.0,0.00021249,2]
[345331255,1734154238736,-222.121413,0.00021249,2]
[345331256,1734154238746,-222.121413,0.00021249,3]
[345331257,1734154238755,-222.121413,0.00021249,4]
[345331258,1734154238764,-222.121413,0.00021249,5]
[345331259,1734154238773,-222.121413,0.00021249,6]
[345331260,1734154238783,-222.121413,0.00021249,7]
[345331261,1734154238792,-222.121413,0.00021249,8]
[345331262,1734154238803,-324.121413,0.00021249,9]
[345331263,1734154238813,-150694.9552269,0.00021249,2]
[345331264,1734154238822,-1000.0,0.00021249,2]
[345331265,1734154238831,-2000.0,0.00021249,2]
[345331266,1734154238840,-500.0,0.00021249,3]
[345331267,1734154238849,-500.0,0.00021249,3]
[345331268,1734154238858,-283.03593546,0.00021249,3]
[345331269,1734154238867,-500.0,0.00021249,3]
[345331270,1734154238875,-500.0,0.00021249,3]
[345331271,1734154238884,-500.0,0.00021249,3]
[345331272,1734154238892,-500.0,0.00021249,3]
[345331273,1734154238901,-500.0,0.00021249,3]
[345331274,1734154238910,-500.0,0.00021249,3]
[345331275,1734154238919,-456.15003211,0.00021249,3]
[345331276,1734154238927,-418.82,0.00021249,3]
[345331277,1734154238936,-150.0,0.00021249,2]
[345331278,1734154238945,-500.0,0.00021249,3]
[345331279,1734154238954,-920.48,0.00021249,2]
[345331280,1734154238963,-2000.0,0.00021249,2]
[345331281,1734154238972,-500.0,0.00021249,3]
[345331282,1734154238984,-500.0,0.00021249,3]
[345331283,1734154238993,-500.0,0.00021249,3]
[345331284,1734154239002,-500.0,0.00021249,3]
[345331285,1734154239018,-500.0,0.00021249,3]
[345331286,1734154239031,-324.40890977,0.00021249,3]
[345331287,1734154239039,-500.0,0.00021249,3]
[345331288,1734154239048,-614.33222874,0.00021249,3]
[345331289,1734154239057,-500.0,0.00021249,3]
[345331290,1734154239066,-500.0,0.00021249,3]
[345331291,1734154239075,-389.11819751,0.00021249,3]
[345331292,1734154239085,-423.0912,0.00021249,2]
[345331293,1734154239096,-317.6,0.00021249,3]
[345331294,1734154239105,-500.0,0.00021249,3]
[345331295,1734154239114,-638.2,0.00021249,3]
[345331296,1734154239123,-500.0,0.00021249,3]
[345331297,1734154239132,-500.0,0.00021249,3]
[345331298,1734154239141,-500.0,0.00021249,3]
[345331299,1734154239149,-500.0,0.00021249,3]
[345331300,1734154239158,-500.0,0.00021249,3]
[345331301,1734154239167,-173.1,0.00021249,3]
[345331302,1734154239176,-500.0,0.00021249,3]
[345331303,1734154239185,-476.97587048,0.00021249,3]
[345331304,1734154239194,-500.0,0.00021249,3]
[345331305,1734154239203,-500.0,0.00021249,3]
[345331306,1734154239213,-500.54374953,0.00021249,3]
[345331307,1734154239222,-500.0,0.00021249,3]
[345331308,1734154239232,-500.34655626,0.00021249,3]
[345331309,1734154239241,-500.0,0.00021249,3]
[345331310,1734154239251,-635.96184477,0.00021249,3]
[345331311,1734154239260,-186.56,0.00021249,3]
[345331312,1734154239269,-593.56062436,0.00021249,3]
[345331313,1734154239278,-502.61628788,0.00021249,3]
[345331314,1734154239287,-500.0,0.00021249,3]
[345331315,1734154239296,-500.0,0.00021249,3]
[345331316,1734154239306,-528.25,0.00021249,3]
[345331317,1734154239315,-502.88769088,0.00021249,3]
[345331318,1734154239324,-500.43887565,0.00021249,3]
[345331319,1734154239334,-500.0,0.00021249,3]
[345331320,1734154239343,-506.03087572,0.00021249,3]
[345331321,1734154239352,-500.0,0.00021249,3]
[345331322,1734154239361,-500.0,0.00021249,3]
[345331323,1734154239370,-502.20522625,0.00021249,3]
[345331324,1734154239379,-500.0,0.00021249,3]
[345331325,1734154239389,-159.00870727,0.00021249,3]
[345331326,1734154239398,-500.0,0.00021249,3]
[345331327,1734154239407,-500.0,0.00021249,3]
[345331328,1734154239416,-527.1,0.00021249,3]
[345331329,1734154239424,-500.0,0.00021249,3]
[345331330,1734154239433,-2586.21035,0.00021249,2]
[345331331,1734154239442,-500.0,0.00021249,3]
[345331332,1734154239451,-500.0,0.00021249,3]
[345331333,1734154239460,-500.0,0.00021249,3]
[345331334,1734154239469,-500.0,0.00021249,3]
[345331335,1734154239478,-500.0,0.00021249,3]
[345331336,1734154239489,-500.0,0.00021249,3]
[345331337,1734154239498,-278.81,0.00021249,3]
[345331338,1734154239506,-500.0,0.00021249,3]
[345331339,1734154239515,-500.0,0.00021249,3]
[345331340,1734154239524,-500.0,0.00021249,3]
[345331341,1734154239533,-500.0,0.00021249,3]
[345331342,1734154239542,-500.0,0.00021249,3]
[345331343,1734154239551,-500.0,0.00021249,3]
[345331344,1734154239560,-500.0,0.00021249,3]
[345331345,1734154239569,-500.0,0.00021249,3]
[345331346,1734154239578,-500.0,0.00021249,3]
[345331347,1734154239586,-615.92,0.00021249,3]
[345331348,1734154239595,-500.0,0.00021249,3]
[345331349,1734154239604,-500.0,0.00021249,3]
[345331350,1734154239613,-605.01,0.00021249,3]
[345331351,1734154239622,-500.0,0.00021249,3]
[345331352,1734154239631,-500.0,0.00021249,3]
[345331353,1734154239639,-500.0,0.00021249,3]
[345331354,1734154239649,-500.0,0.00021249,3]
[345331356,1734154239658,-459.68,0.00021249,3]
[345331357,1734154239667,-500.0,0.00021249,3]
[345331358,1734154239677,-284.16,0.00021249,3]
[345331359,1734154239686,-500.0,0.00021249,3]
[345331360,1734154239695,-500.0,0.00021249,3]
[345331361,1734154239704,-500.0,0.00021249,3]
[345331362,1734154239714,-500.0,0.00021249,3]
[345331363,1734154239724,-500.0,0.00021249,3]
[345331364,1734154239734,-500.0,0.00021249,3]
[345331365,1734154239743,-500.0,0.00021249,3]
[345331366,1734154239752,-500.0,0.00021249,3]
[345331367,1734154239761,-647.29,0.00021249,3]
[345331368,1734154239770,-183.51697109,0.00021249,3]
[345331369,1734154239780,-500.0,0.00021249,3]
[345331370,1734154239790,-500.0,0.00021249,3]
[345331371,1734154239799,-160.32,0.00021249,3]
[345331372,1734154239808,-500.0,0.00021249,3]
[345331373,1734154239818,-500.0,0.00021249,3]
[345331374,1734154239827,-500.0,0.00021249,3]
[345331375,1734154239836,-510.68,0.00021249,3]
[345331376,1734154239845,-500.0,0.00021249,3]
[345331377,1734154239855,-500.0,0.00021249,3]
[345331378,1734154239865,-500.0,0.00021249,3]
[345331379,1734154239873,-500.0,0.00021249,3]
[345331380,1734154239882,-476.55732737,0.00021249,3]
[345331381,1734154239891,-500.0,0.00021249,3]
[345331382,1734154239899,-500.0,0.00021249,3]
[345331383,1734154239908,-500.0,0.00021249,3]
[345331384,1734154239917,-500.0,0.00021249,3]
[345331385,1734154239926,-500.0,0.00021249,3]
[345331386,1734154239934,-500.0,0.00021249,3]
[345331387,1734154239943,-500.0,0.00021249,3]
[345331388,1734154239951,-500.0,0.00021249,3]
[345331389,1734154239960,-500.0,0.00021249,3]
[345331390,1734154239969,-500.0,0.00021249,3]
[345331391,1734154239978,-500.0,0.00021249,3]
[345331392,1734154239987,-500.0,0.00021249,3]
[345331393,1734154239995,-500.0,0.00021249,3]
[345331394,1734154240005,-500.0,0.00021249,3]
[345331395,1734154240017,-500.0,0.00021249,3]
[345331396,1734154240026,-500.0,0.00021249,3]
[345331397,1734154240035,-500.0,0.00021249,3]
[345331398,1734154240044,-500.0,0.00021249,3]
[345331399,1734154240055,-500.0,0.00021249,3]
[345331400,1734154240064,-500.0,0.00021249,3]
[345331401,1734154240074,-500.0,0.00021249,3]
[345331402,1734154240084,-203.3,0.00021249,3]
[345331403,1734154240094,-500.0,0.00021249,3]